Cogmind - Beta 15 @@@ ROGUE MODE // 2025.07.24 @ 17:31:15 Player: Waste Result: Destroyed by S-10 Pest with Light Assault Rifle Performance ------------- Evolutions (0) 0 Regions Visited (2) 400 Robots Destroyed (16) 80 Value Destroyed (545) 545 Prototype IDs (11) 220 Alien Tech Used (0) 0 Bonus (0) 0 TOTAL SCORE: 1245 Bonus ------- None Cogmind --------- Core Integrity 0/250 Matter 292/300 Energy 202/250 System Corruption 2% Temperature Warm (108) Movement Treading (320) Ox2 Location -10/Subcaves Parts ------- > --- POWER (1) -------- Ion Engine > --- PROPULSION (2) --- Light Treads Aluminum Leg (fused) > --- UTILITY (2) ------ High-capacity Storage Unit Subdweller Optics > --- WEAPON (2) ------- Subdweller Laser Subdweller Beam Cannon > --- INVENTORY (20) --- Ion Engine Subdweller Power Source Light Treads Light Treads Makeshift Leg Wheel Wheel Gun Armor Scrap Shield Riot Gun Medium Laser Medium Laser Subdweller Laser Subdweller Laser Assault Rifle Assault Rifle Subdweller Machine Gun Grenade Launcher Subdweller Shrapnel Launcher Peak State ------------ > --- POWER ------------ Ion Engine > --- PROPULSION ------- Light Treads Aluminum Leg > --- UTILITY ---------- High-capacity Storage Unit Subdweller Optics > --- WEAPON ----------- Subdweller Laser Subdweller Beam Cannon > --- INVENTORY -------- Ion Engine Subdweller Power Source Light Treads Light Treads Makeshift Leg Wheel Wheel Gun Armor Scrap Shield Riot Gun Medium Laser Medium Laser Subdweller Laser Subdweller Laser Assault Rifle Assault Rifle Subdweller Machine Gun Grenade Launcher Subdweller Shrapnel Launcher [Rating: 14] Favorites ----------- Power Ion Engine Engine Ion Engine Propulsion Aluminum Leg Treads Light Treads Leg Aluminum Leg Utility High-capacity Storage Unit Device Terrain Scanner Storage High-capacity Storage Unit Weapon Subdweller Beam Cannon Energy Gun Subdweller Laser Energy Cannon Subdweller Beam Cannon Ballistic Gun Assault Rifle Ballistic Cannon Light Cannon Build | -11 -10 -10 ------- Run | Yrd Mat Sub Slots Evolved . | . . . Power . | . . . Propulsion . | . . . Utility . | . . . Weapon . | . . . Parts Attached 12 | . 4 8 Power . | . . . Engine . | . . . Core . | . . . Reactor . | . . . Propulsion 1 | . . 1 Treads 1 | . . 1 Leg . | . . . Wheel . | . . . Hover . | . . . Flight . | . . . Utility 3 | . 2 1 Device 2 | . 1 1 Storage 1 | . 1 . Processor . | . . . Hackware . | . . . Protection . | . . . Artifact . | . . . Weapon 8 | . 2 6 Energy Gun 1 | . . 1 Energy Cannon 2 | . . 2 Ballistic Gun 4 | . 2 2 Ballistic Cannon 1 | . . 1 Launcher . | . . . Special Weapon . | . . . Impact Weapon . | . . . Slashing Weapon . | . . . Piercing Weapon . | . . . Special Melee Weapon . | . . . Unidentified Prototypes . | . . . Parts Lost 4 | . . 4 Power . | . . . Propulsion 1 | . . 1 Utility 1 | . . 1 Weapon 2 | . . 2 Highest Loss Streak 2 | . . 2 To Critical Strikes 1 | . . 1 Average Backups 17 | . 11 18 Power 1 | . 1 1 Propulsion 5 | . 5 5 Utility 1 | . . 1 Weapon 9 | . 4 9 Tool/Special . | . . . Unused Backups 28 | . 5 23 Power 3 | . . 3 Propulsion 8 | . . 8 Utility 3 | . . 3 Weapon 14 | . 5 9 Tool/Special . | . . . Average Slot Usage (%) 99 | . 96 99 Engine 14 | . 14 14 Treads 10 | . . 11 Leg 17 | . 28 16 Device 13 | . 10 13 Storage 14 | . 14 14 Energy Gun 7 | . . 8 Energy Cannon 11 | . . 13 Ballistic Gun 7 | . 28 5 Ballistic Cannon 1 | . . 1 Peak Build Rating 14 | . 8 14 Average Rating 11 | . 7 12 On Entrance 6 | 6 6 8 Naked Turns . | . . . Heaviest Build 59 | 12 54 59 Greatest Support 20 | 20 20 20 Greatest Overweight (x) 2 | . 2 2 Average Overweight (x) 1 | . 1 2 Largest Inventory Capacity 20 | . 20 20 Average Capacity 19 | . 17 20 Most Carried 20 | . 15 20 Average Carried 18 | . 11 19 Final Capacity 20 | 8 20 20 Final Carried 20 | 6 15 20 Class Distribution -------------------- 100% | Mutant Dominant Class ---------------- Mutant | -10/Materials Mutant | -10/Subcaves Resources | -11 -10 -10 ----------- Run | Yrd Mat Sub Matter Collected 545 | 200 . 345 Remotely . | . . . Salvage Created 684 | . 46 638 Parts 45 | . 3 42 Haulers Intercepted . | . . . Recyclers Shooed . | . . . Parts Field Recycled . | . . . Retrieved Matter . | . . . Parts Self-Destructed 9 | . . 9 Prevented . | . . . Kills | -11 -10 -10 ------- Run | Yrd Mat Sub Combat Hostiles Destroyed 16 | . 1 15 Guns 9 | . 1 8 Cannons 6 | . . 6 Classes Destroyed 3 | . 1 2 Swarmer 3 | . . 3 Grunt 3 | . 1 2 Subdweller 10 | . . 10 Best Kill Streak 3 | . 1 3 Combat Bots Only 3 | . 1 3 Max Kills in Single Turn 1 | . 1 1 Gunslinging . | . . . Exploded . | . . . Melee . | . . . Uniques/NPCs Destroyed . | . . . Combat | -11 -10 -10 -------- Run | Yrd Mat Sub Hostile Shots Fired 92 | . 5 87 Missed 33 | . 3 30 Hits 59 | . 2 57 Projectile 59 | . 2 57 Critical Strikes 2 | . . 2 Damage Taken 1002 | . 24 978 Core 257 | . 12 245 Absorbed by Shields . | . . . Core Remaining (%) 100 | 100 . . Volleys Fired 72 | . 5 67 Largest 2 | . 2 2 Hottest 140 | . 40 140 Shots Fired 144 | . 10 134 Gun 73 | . 10 63 Cannon 71 | . . 71 Launcher . | . . . Special . | . . . Kinetic 55 | . 10 45 Thermal 89 | . . 89 Explosive . | . . . Electromagnetic . | . . . Robot Hit Streak 29 | . 6 29 Robot Miss Streak 4 | . 2 4 Penetration Max . | . . . Secondary Targets . | . . . Shots Hit Robots 66 | . 7 59 Core Hits 27 | . 3 24 Critical Kills 1 | . . 1 Critical Parts Destroyed . | . . . Critical Strikes 1 | . . 1 Meltdown 1 | . . 1 Melee Attacks . | . . . Impact . | . . . Slashing . | . . . Piercing . | . . . Sneak Attacks . | . . . Combat Hostiles . | . . . Follow-up Attacks . | . . . Damage Inflicted 1372 | . 54 1318 Guns 612 | . 54 558 Cannons 760 | . . 760 Explosions . | . . . Melee . | . . . Ramming . | . . . Kinetic 466 | . 54 412 Thermal 906 | . . 906 Explosive . | . . . Electromagnetic . | . . . Impact . | . . . Slashing . | . . . Piercing . | . . . Highest Corruption 2 | . 2 2 Average Corruption 2 | . 2 2 Corruption Purged . | . . . Corruption Blocked . | . . . Effects 69 | . 2 67 Message Errors 21 | . 2 19 Matter Fused 12 | . . 12 Heat Flow Errors 8 | . . 8 Energy Discharges 9 | . . 9 Parts Fused 1 | . . 1 Data Loss (minor) 6 | . . 6 Data Loss (major) 3 | . . 3 Misfires 3 | . . 3 Alerts 5 | . . 5 Weapon Failures 1 | . . 1 Overload Shots . | . . . Overflow Damage . | . . . Projectiles . | . . . Explosions . | . . . Melee . | . . . Knockbacks 3 | . . 3 Impact . | . . . Kinetic 2 | . . 2 Secondary 1 | . . 1 Self-Inflicted Damage . | . . . Shots . | . . . Rammed . | . . . Targets Rammed . | . . . Kicked . | . . . Crushed . | . . . Highest Temperature 213 | . 6 213 Average Temperature 52 | . 6 54 Received Heat Transfer 168 | . 12 156 Siege Activations . | . . . Martial Activations . | . . . Shielding Activations . | . . . Robots Disrupted . | . . . Combat Hostiles . | . . . Robots Corrupted . | . . . Combat Hostiles . | . . . Parts Fried . | . . . Impact Corruptions . | . . . Robots Melted 1 | . . 1 Combat Hostiles 1 | . . 1 Parts Melted 3 | . . 3 Heat Transferred 1200 | . . 1200 Parts Sabotaged . | . . . Parts Stolen . | . . . Parts Stripped . | . . . Power Chain Reactions . | . . . Alert | -11 -10 -10 ------- Run | Yrd Mat Sub Maximum Alert Level . | . . . Low Security (%) 100 | . 100 . Level 1 . | . . . Level 2 . | . . . Level 3 . | . . . Level 4 . | . . . Level 5 . | . . . High Security . | . . . Max Security . | . . . Peak Influence 30 | . 30 . Initial . | . . . Average 1 | . 1 . Influence Increases 185 | . 30 155 Destroy 0b10 Robot/C 120 | . 20 100 Destroy Leader 20 | . 10 10 Lose Combat Pursuer 45 | . . 45 Influence Decreases 69 | . 30 39 Time Decay 69 | . 30 39 Squads Dispatched 1 | . 1 . Investigation 1 | . 1 . Extermination . | . . . Reinforcement . | . . . Assault . | . . . Garrison . | . . . Intercept . | . . . Searches Triggered . | . . . Construction Impeded . | . . . Haulers Reinforced . | . . . Active Scanning Responses . | . . . Cargo Convoy Interrupts . | . . . Stealth | -11 -10 -10 --------- Run | Yrd Mat Sub Distress Signals . | . . . Communications Jammed . | . . . Distress Signals . | . . . Times Spotted 17 | . 1 16 Peak Tracking Total 6 | . 1 6 Tactical Retreats 1 | . . 1 Traps | -11 -10 -10 ------- Run | Yrd Mat Sub Traps Triggered 4 | . 2 2 Indirectly . | . . . Trap Hack Attempts . | . . . Triggered . | . . . Disarmed . | . . . Reprogrammed . | . . . Reused . | . . . Traps Extracted . | . . . Installed . | . . . Triggered . | . . . Machines | -11 -10 -10 ---------- Run | Yrd Mat Sub Machines Disabled 1 | . . 1 Max in Single Turn 1 | . . 1 Machines Repaired . | . . . Machines Dismantled . | . . . Machines Sabotaged . | . . . Overloaded Fab Kills . | . . . Hacking | -11 -10 -10 --------- Run | Yrd Mat Sub Machines Accessed 2 | . . 2 Terminals . | . . . Fabricators . | . . . Repair Stations . | . . . Recycling Units . | . . . Scanalyzers . | . . . Garrison Access . | . . . Total Hacks 6 | . . 6 Successful 6 | . . 6 Failed . | . . . Catastrophic . | . . . Database Lockouts . | . . . Manual . | . . . Terminals . | . . . Fabricators . | . . . Repair Stations . | . . . Recycling Units . | . . . Scanalyzers . | . . . Garrison Access . | . . . Terminal Hacks 6 | . . 6 Record 5 | . . 5 Proto ID Catalog 1 | . . 1 Fabricator Hacks . | . . . Repair Station Hacks . | . . . Recycling Unit Hacks . | . . . Scanalyzer . | . . . Garrison Access Hacks . | . . . Unauthorized Hacks . | . . . Terminals . | . . . Fabricators . | . . . Repair Stations . | . . . Recycling Units . | . . . Scanalyzers . | . . . Garrison Access . | . . . Data Cores Recovered . | . . . Used . | . . . Hacking Detections . | . . . Full Trace Events . | . . . Feedback Events . | . . . Feedback Blocked . | . . . Robot Schematics Acquired . | . . . Robots Built . | . . . Authchips . | . . . Time . | . . . Total Robot Build Rating . | . . . Part Schematics Acquired . | . . . Parts Built . | . . . Authchips . | . . . Time . | . . . Total Part Build Rating . | . . . Parts Repaired . | . . . Time . | . . . Parts Recycled . | . . . Recycled Matter . | . . . Retrieved Matter . | . . . Retrieved Components . | . . . Parts Scanalyzed . | . . . Part Schematics Acquired . | . . . Parts Damaged . | . . . Bothacking | -11 -10 -10 ------------ Run | Yrd Mat Sub Used RIF Installer . | . . . Robots Hacked . | . . . Non-combat . | . . . Combat . | . . . Robot Hacks Applied . | . . . Relay Couplers Released . | . . . Fabnet Peak Effective % . | . . . Robots Rewired . | . . . Allies Hacked . | . . . Hacks Repelled . | . . . Allies | -11 -10 -10 -------- Run | Yrd Mat Sub Total Allies . | . . . Largest Group . | . . . Highest-Rated Group . | . . . Highest-Rated Ally . | . . . Total Orders . | . . . Ally Attacks . | . . . Total Damage . | . . . Kills . | . . . Allies Corrupted . | . . . Allies Melted . | . . . Intel | -11 -10 -10 ------- Run | Yrd Mat Sub Active Infowar (turns) 5195 | . 412 4783 Optics 1461 | . . 1461 Terrain 3734 | . 412 3322 Robot Analysis Total . | . . . Derelict Logs Recovered 1 | . . 1 Drone Launches . | . . . Drone Recoveries . | . . . Exploration | -11 -10 -10 ------------- Run | Yrd Mat Sub Turns Passed 5775 | . 562 5213 Spaces Moved 1855 | 1 256 1598 Core . | . . . Treads 1329 | . . 1329 Legs 526 | 1 256 269 Wheels . | . . . Hover . | . . . Flight . | . . . Fastest Speed 120 | 120 120 260 Average Speed 295 | 120 208 309 Slowest Speed 320 | 120 260 320 Overloaded Moves . | . . . Propulsion Burnouts . | . . . Robots Hopped . | . . . Potential Cave-ins . | . . . Cave-ins Triggered . | . . . Exploration Rate (%) 43 | 2 40 88 Regions Visited 2 Branch Regions 1 Pre-discovered Areas . | . . . Known Exits Taken . | . . . Unknown Exits Taken 2 | 1 1 . Scrap Searched 7 | . . 7 Spaces Dug . | . . . Terrain Destroyed 8 | . . 8 Melee . | . . . Projectile 8 | . . 8 AOE . | . . . Terrain Rammed . | . . . Walls Destroyed . | . . . Machines Disabled . | . . . Actions | -11 -10 -10 --------- Run | Yrd Mat Sub Total 2005 | . 279 1726 Wait 35 | . 2 33 Move 1853 | . 255 1598 Hop . | . . . Pick Up 22 | . 9 13 Fast Attach 2 | . 2 . Attach 4 | . . 4 Detach 1 | . 1 . Swap 7 | . 2 5 Drop 9 | . 3 6 Fire 72 | . 5 67 Melee . | . . . Ram . | . . . Kick . | . . . Crush . | . . . Escape Stasis . | . . . Rewire . | . . . Trap . | . . . Miscellaneous . | . . . Route ------- -11/Scrapyard -10/Materials (discovered 3 exits: [*Mat] / [*Min] / *Sub) -10/Subcaves (discovered 1 exit: [*Mat]) History --------- Turn | Location | Event 1 | -11/Scrapyard | Discovered new exit (range 0) 1 | -11/Scrapyard | Entered Materials 305 | -10/Materials | Build established: Mutant 434 | -10/Materials | Discovered new exit (range 9) 492 | -10/Materials | Discovered new exit (range 7) 537 | -10/Materials | Discovered new exit (range 10) 563 | -10/Materials | Entered Subcaves 979 | -10/Subcaves | A swath of the cavern ceiling suddenly collapsed 1026 | -10/Subcaves | Visited Clippyterm 1034 | -10/Subcaves | Learned Research machine intel 1034 | -10/Subcaves | Learned 40 Factory zone layouts 1895 | -10/Subcaves | Core integrity fell below 50% 2011 | -10/Subcaves | Shifting Twisted Machinery released Mak. System Shield 2019 | -10/Subcaves | Shifting Twisted Machinery released Sub. Power Source 2087 | -10/Subcaves | Learned Materials interactive machine intel 3829 | -10/Subcaves | Shifting Twisted Machinery released Sub. Power Source 3881 | -10/Subcaves | Shifting Twisted Machinery released Piercing Trap 3944 | -10/Subcaves | Ambushed by Subdweller buried in earth 4477 | -10/Subcaves | Visited 4L-MR0's lab 4511 | -10/Subcaves | Found Gun Armor 5003 | -10/Subcaves | Discovered new exit (range 9) 5750 | -10/Subcaves | Core integrity fell below 20% 5776 | -10/Subcaves | Destroyed by S-10 Pest with Light Assault Rifle Last Messages --------------- 05047_ System corrupted: Matter fused (-9). 05077_ System corrupted: IFF burst signal emitted. 05215_ System corrupted: Energy discharge (-95). 05253_ Acquired 9 matter. 05289_ DTZOIWIOMM8QE0FTSAQE:NFHT6KC6T,L& 05305_ #/ICJ5R4:C#ITWEHXPO3KWKB G XB 05341_ JHDO8FZU8QENY9KDFFIWWFP11EZR=KC#MPQA 05353_ Sub. Optics shoots sparks and powers down. 05413_ System corrupted: Energy discharge (-52). 05434_ System corrupted: Energy discharge (-82). 05560_ System corrupted: FCS attempts to trigger Sub. Laser. 05560_ System corrupted: Sub. Laser misfires. 05587_ System corrupted: Heat flow error (+226). 05603_ System corrupted: Heat flow error (+225). 05648_ &GSLDFAK2WJGW>P9A&QHSJCRRONR K9 05752_ System corrupted: Matter fused (-8). 05761_ S-10 Pest destroyed. 05766_ Subatomizers dissect the Flight Unit. 05773_ S-10 Pest destroyed. 05774_ Flight Unit fries itself beyond repair. Map ----- +----------------------------------------------------+ | # ##??#????#???????????????????????????????????? | | ## #??????#????#????????????????????????????????? | | ?# #??????#?????????????????????????????????????? | | ## ##????##?????????????????????????????????????? | | ?# #?#?#?##????????????????????????????????????? | | ## ###??#???#??????????????????????????????????? | | ##????????????????????????????????????????? | | #### |#????????#??#?????????????????????????????? | | ##""#%!#?????#???????????????????????????????????? | | #"%[&%[#???#?????????????????????????????????????? | | #"%["# #??????#??????????? ?????????????????????? | | ##""## #???#???#?????????? ?????????????????????? | | #### #?#?##??????#????? ###??????????????????? | | #????????????????? ??????????????????? | | # ###???#???#??##????? ??????????????????? | | # #??#???##??????????## ???????????????????? | | #?????#????#?#?????? ?? ????????????????? | | ##??#??#??#???????? ? ?? ????????????????? | | #??#??#??##???????? ?? #?? ????????? ??????? | | ##??#??????????##????? ???? ?????? ???????? | | ###???#??#??#??????### ##???????? ??????? | | ##?#??????#????##### # #??????? # ???????? | | # #?????????##???# ##????# #????????? | | #####???#??????????# #??# #### #????????? | | ????#????#????????### #### #?????????? | | ?###???????????#### # @% ###???????? | | ?#?####????##?#### %%s #??????? | | #### ###???#?## * ##### ??????? | | ?## #?????#?# ## #### #???????????????? | | ??# #???##### #####??# ####?#???? ????????? | | ### ##### ## #?????# #;#?????????????????? | | ## # ## ####?????## ## #????????????????? | | # "#?????????# #?# #???????????????? | | ###?#??#???# ##??##???????????????? | | ##???#?????# #????????????????????? | | ### #?#???? ??# ???#??#?????????????? | | ##?## ##??? ????" ????????????????????? | | #### ## ### ?????""# ????????????????????? | | ## #### # ??? #" ;?????? ?????????????? | | ! ## ##### ###?????? # ;#???????????????????? | | ####### "#####???## ""????????????????????? | | ##?##?# ""#""#????## "# ????????????????????? | | #### ## "#"""### "" ????????????????????? | | ""#"#"#####"# ????????????????????? | | ""#"#"""#""# ????????????????????? | | ###### ## #"#""""#""# ????????????????????? | | ##????##### #####""### # ????????????????????? | | #??????#?### #?##"""""#"# ?????????????????????? | | ???????????# ###"###"""#"# ?????????????????????? | | ?#????#???## #""#"""""""#??????????????????????? | +----------------------------------------------------+ Best States ------------- Heat Dissipation 25 Energy Generation 10 Energy Capacity 250 Matter Stores 300 Matter Capacity 300 Sight Range 21 Terrain Scan Range 14 Terrain Scan Density 10 Evasion (%) 55 Recoil Reduction 1 Item Schematics ----------------- None Robot Schematics ------------------ None Fabricated ------------ Nothing Repaired ---------- Nothing Alien Tech Used ----------------- None Achievements -------------- None Challenges ------------ None Game ------ Seed SmartbombDeliveryCompanion Manual? 0 Play Time 00:10:45 Cumulative 401.5 hours Start 2025.07.24 @ 17:21:56 End 2025.07.24 @ 17:31:15 Sessions 1 Manual Loads 0 Difficulty Rogue Special Mode None Game No. 502 Rogue 502 Adventurer 0 Explorer 0 Win Type - Total 31 Types 15/1/9/1/1/1/0/1/1/1 Lore% 87 Gallery% 80 Achievement% 77 Wizard Run 0 Options --------- Layout 0 ASCII 0 Keyboard 0 Movement Numpad Keybinds 0 Fullscreen 1 Font 18/SmallcapsGlow Map View 76x50 Zoom Use 0% Tactical HUD 1 Map Filters NONE Filters NONE Steam 1 RUN: f346ea92-5244-4312-9464-4e513360e4b1